fUST/lending_fUST_20251006
["ID","MTS","AMOUNT","RATE_DAILY","PERIOD"]
[389528412,1759699711731,151.0,0.000255,120]
[389528413,1759699711773,331.15265776,0.00031933,90]
[389528414,1759699712789,248.02018187,0.00031933,120]
[389528415,1759699713011,151.0,0.00027,120]
[389528416,1759699713125,585.79020864,0.0002,120]
[389528417,1759699713715,1821.58142173,0.00031933,60]
[389528418,1759699713899,2912.34108886,0.00031933,120]
[389528419,1759699713996,2000.0,0.00031933,120]
[389528420,1759699714453,151.0,0.000285,120]
[389528421,1759699714654,346.70060105,0.00031933,120]
[389528422,1759699714686,1127.65446096,0.00031933,120]
[389528423,1759699715277,595.93840417,0.00024108,120]
[389528424,1759699715477,3233.04712734,0.00025,120]
[389528425,1759699715654,372.86867612,0.00025,120]
[389528426,1759699716149,2664.88381418,0.00031933,120]
[389528427,1759699716472,567.83198281,0.00031933,120]
[389528428,1759699717052,154.60540023,0.00025,120]
[389528429,1759699717146,355.75128082,0.00031933,120]
[389528430,1759699717645,1031.97814175,0.00031933,120]
[389528431,1759699718111,673.40796683,0.00031933,120]
[389528432,1759699718146,1468.34901506,0.00031933,120]
[389528433,1759699718178,3357.62059996,0.00031933,120]
[389528434,1759699718214,903.97990727,0.00031933,120]
[389528435,1759699718249,1006.40349044,0.00025,120]
[389528436,1759699718280,1122.07747119,0.00031933,120]
[389528437,1759699718317,1539.09344938,0.00031933,120]
[389528438,1759699718629,1888.0795408,0.00031933,60]
[389528439,1759699718664,1601.47605412,0.00031933,120]
[389528440,1759699719024,207.0256316,0.00027,120]
[389528441,1759699719384,436.84891741,0.00031933,120]
[389528442,1759699719483,221.11603361,0.00031933,120]
[389528443,1759699720063,6606.40863365,0.0002,120]
[389528445,1759699720261,3112.99751472,0.00031933,120]
[389528446,1759699720510,702.15232899,0.00031933,120]
[389528447,1759699720666,324.61737672,0.00031933,120]
[389528448,1759699721052,2059.92785533,0.00024,120]
[389528449,1759699721347,1901.58884537,0.00018,120]
[389528450,1759699721468,1651.66651309,0.00028767,120]
[389528451,1759699721550,557.85325646,0.00031933,120]
[389528452,1759699721583,1167.49745132,0.00031933,60]
[389528453,1759699721994,429.39265217,0.00031933,60]
[389528454,1759699722031,293.10924488,0.00027397,120]
[389528455,1759699722067,198.47570432,0.00025,120]
[389528456,1759699722114,982.88542072,0.00031933,60]
[389528457,1759699722147,166.47923015,0.00031933,120]
[389528458,1759699722203,223.91505409,0.0001536,120]
[389528459,1759699722582,503.76512,0.00031933,120]
[389528460,1759699722708,545.13272825,0.00031933,120]
[389528461,1759699722935,514.37601695,0.00025,120]
[389528462,1759699723190,2032.29152102,0.00031933,120]
[389528463,1759699723404,1837.00141461,0.000249,120]
[389528464,1759699723488,1034.29824959,0.00031933,120]
[389528465,1759699723543,1203.30835045,0.00031933,120]
[389528466,1759699723721,224.67749852,0.00031933,120]
[389528467,1759699723754,163.86538194,0.00031933,120]
[389528468,1759699724087,3175.57781523,0.00027,120]
[389528469,1759699724244,196.2466628,0.0002739,120]
[389528470,1759699724364,2419.73696265,0.00031933,60]
[389528471,1759699724431,2552.5089768,0.00031933,120]
[389528472,1759699724618,717.90163436,0.00026,120]
[389528473,1759699724660,6624.60211451,0.00031933,120]
[389528474,1759699724845,362.67240377,0.00026,120]
[389528475,1759699724893,1912.0,0.00031933,120]
[389528476,1759699725148,429.38138158,0.00025,120]
[389528478,1759699725292,1344.66776902,0.00031933,120]
[389528479,1759699725535,3247.78456483,0.00031933,120]
[389528480,1759699725732,1190.80492839,0.00027,120]
[389528481,1759699725856,245.49572625,0.00031933,120]
[389528482,1759699726158,2761.82704168,0.00023,120]
[389528483,1759699726205,1792.84419849,0.00031933,120]
[389528484,1759699726355,352.48966974,0.00031933,120]
[389528485,1759699726547,1017.05535881,0.00031933,120]
[389528486,1759699726669,3193.24752746,0.00031933,120]
[389528487,1759699726701,427.49802189,0.00031933,120]
[389528488,1759699726958,2511.28622918,0.00031933,120]
[389528489,1759699727055,1009.41192123,0.00031933,60]
[389528490,1759699727085,190.2955497,0.00031933,120]
[389528491,1759699727350,999.999999,0.00031933,120]
[389528492,1759699727759,227.91605185,0.00028,120]
[389528493,1759699727802,209.64305396,0.00026,120]
[389528494,1759699727835,4452.0,0.0002191,120]
[389528495,1759699727870,200.0,0.00031933,60]
[389528496,1759699727900,191.46256685,0.00028,120]
[389528497,1759699727938,458.0,0.00031933,120]
[389528498,1759699728183,4452.0,0.000219,120]
[389528499,1759699728628,4452.0,0.0002189,120]
[389528500,1759699729083,4452.0,0.0002429,120]
[389528501,1759699729522,4452.0,0.0002428,120]
[389528502,1759699729978,4452.0,0.0002427,120]
[389528503,1759699730427,4452.0,0.0002489,120]
[389528504,1759699730868,4452.0,0.0002488,120]
[389528505,1759699731304,4452.0,0.0002599,120]
[389528506,1759699731745,4452.64,0.0002598,120]
[389528507,1759699735658,500.0,0.00024,120]
[389528508,1759699736470,500.0,0.00024,120]
[389528509,1759699737226,500.0,0.00024,120]
[389528510,1759699738016,500.0,0.00024,120]
[389528511,1759699738770,500.0,0.00024,120]
[389528512,1759699739531,500.0,0.00024,120]
[389528513,1759699740667,500.0,0.00024,120]
[389528514,1759699741424,500.0,0.00024,120]
[389528515,1759699741889,302.56937547,0.00031933,120]
[389528516,1759699742172,500.0,0.00024,120]
[389528517,1759699742526,301.53906792,0.00031933,120]
[389528518,1759699742934,500.0,0.00024,120]
[389528519,1759699743712,500.0,0.00024,120]
[389528520,1759699744483,500.0,0.00024,120]
[389528521,1759699745247,500.0,0.00024,120]
[389528522,1759699746085,500.0,0.00024,120]
[389528523,1759699746855,500.0,0.00024,120]
[389528524,1759699747641,500.0,0.00024,120]
[389528525,1759699748436,500.0,0.00024,120]
[389528526,1759699749219,500.0,0.00024,120]
[389528527,1759699750007,500.0,0.00024,120]
[389528528,1759699750800,500.0,0.00024,120]
[389528529,1759699751590,500.0,0.00024,120]
[389528530,1759699752584,500.0,0.00024,120]
[389528531,1759699752717,3000.0,0.00031933,120]
[389528532,1759699753146,197.12,0.00024,120]
[389528533,1759699754619,229.18599485,0.00019967,10]
[389528534,1759699771183,200.0,0.00026117,120]
[389528535,1759699803178,3000.0,0.00028767,120]
[389528536,1759699803211,3181.349999,0.00028767,120]
[389528537,1759699803242,528.00949729,0.00028767,120]
[389528538,1759699803274,189.18811554,0.00031933,120]
[389528539,1759699803305,1032.2,0.00028767,120]
[389528540,1759699803337,6011.17,0.00028767,120]
[389528541,1759699803374,1989.60389981,0.00031933,120]
[389528542,1759699829188,658.0,0.00027811,120]
[389528584,1759699832092,-161.98230199,0.00016338,2]
[389528586,1759699832102,-88.81769801,0.00016436,2]
[389528709,1759699833677,151.0,0.00024,120]
[389528710,1759699834880,200.0,0.000274,120]
[389528711,1759699835068,151.0,0.000255,120]
[389528712,1759699836776,151.0,0.00027,120]
[389528718,1759699837860,-211.18230199,0.00016436,2]
[389528719,1759699837870,-167.0,0.00016436,2]
[389528720,1759699837879,-1200.0,0.00016436,2]
[389528721,1759699837889,-290.89964862,0.00016437,2]
[389528722,1759699837898,-394.09500942,0.00016437,2]
[389528723,1759699837907,-263.99408746,0.00016437,2]
[389528724,1759699837917,-389.0,0.00016437,2]
[389528725,1759699837926,-520.0,0.00016438,3]
[389528726,1759699837935,-500.0,0.00016438,2]
[389528727,1759699837944,-500.0,0.00016438,2]
[389528728,1759699837952,-500.0,0.00016438,2]
[389528729,1759699837962,-500.0,0.00016438,2]
[389528730,1759699837972,-500.0,0.00016438,2]
[389528731,1759699837982,-500.0,0.00016438,2]
[389528732,1759699837991,-500.0,0.00016438,2]
[389528733,1759699838000,-500.0,0.00016438,2]
[389528734,1759699838009,-500.0,0.00016438,2]
[389528735,1759699838020,-500.0,0.00016438,2]
[389528736,1759699838029,-500.0,0.00016438,2]
[389528737,1759699838038,-500.0,0.00016438,2]
[389528738,1759699838048,-500.0,0.00016438,2]
[389528739,1759699838057,-500.0,0.00016438,2]
[389528740,1759699838067,-500.0,0.00016438,2]
[389528741,1759699838076,-619.56458738,0.00016438,2]
[389528742,1759699838085,-500.0,0.00016438,2]
[389528743,1759699838094,-500.0,0.00016438,2]
[389528744,1759699838104,-500.0,0.00016438,2]
[389528745,1759699838113,-500.0,0.00016438,2]
[389528746,1759699838123,-500.0,0.00016438,2]
[389528747,1759699838132,-589.4035655,0.00016438,2]
[389528748,1759699838144,-608.1464345,0.00016438,2]
[389528749,1759699838153,-500.0,0.00016438,2]
[389528750,1759699838162,-505.23,0.00016438,2]
[389528751,1759699838172,-500.0,0.00016438,2]
[389528752,1759699838181,-500.0,0.00016438,2]
[389528753,1759699838190,-500.0,0.00016438,2]
[389528754,1759699838199,-500.0,0.00016438,2]
[389528755,1759699838209,-500.0,0.00016438,2]
[389528756,1759699838218,-492.69603464,0.00016438,2]
[389528757,1759699838228,-500.0,0.00016438,2]
[389528758,1759699838237,-500.0,0.00016438,2]
[389528759,1759699838247,-500.0,0.00016438,2]
[389528760,1759699838257,-500.0,0.00016438,2]
[389528761,1759699838265,-500.0,0.00016438,2]
[389528762,1759699838275,-500.0,0.00016438,2]
[389528763,1759699838285,-500.0,0.00016438,2]
[389528764,1759699838295,-500.0,0.00016438,2]
[389528765,1759699838304,-1143.81,0.00016438,2]
[389528766,1759699838313,-709.87,0.00016438,2]
[389528767,1759699838322,-500.0,0.00016438,2]
[389528768,1759699838333,-500.0,0.00016438,2]
[389528769,1759699838344,-500.0,0.00016438,2]
[389528770,1759699838353,-500.0,0.00016438,2]
[389528771,1759699838363,-500.0,0.00016438,2]
[389528772,1759699838372,-272.32096221,0.00016438,2]
[389528773,1759699838385,-227.67903779,0.00016438,2]
[389528774,1759699838394,-36.37098039,0.00016438,2]
[389528775,1759699838410,-463.62901961,0.00016438,2]
[389528776,1759699838419,-500.0,0.00016438,2]
[389528777,1759699838428,-500.0,0.00016438,2]
[389528778,1759699838438,-500.0,0.00016438,2]
[389528779,1759699838447,-612.5345989,0.00016438,2]
[389528780,1759699838457,-500.0,0.00016438,2]
[389528781,1759699838466,-500.0,0.00016438,2]
[389528782,1759699838475,-500.0,0.00016438,2]
[389528783,1759699838484,-500.0,0.00016438,2]
[389528784,1759699838494,-805.2,0.00016438,2]
[389528785,1759699838503,-500.0,0.00016438,2]
[389528786,1759699838512,-500.0,0.00016438,2]
[389528787,1759699838523,-500.0,0.00016438,2]
[389528788,1759699838532,-500.0,0.00016438,2]
[389528789,1759699838541,-500.0,0.00016438,2]
[389528790,1759699838550,-500.0,0.00016438,2]
[389528791,1759699838559,-513.21,0.00016438,2]
[389528792,1759699838568,-500.0,0.00016438,2]
[389528793,1759699838577,-500.0,0.00016438,2]
[389528794,1759699838587,-601.33,0.00016438,2]
[389528795,1759699838595,-500.0,0.00016438,2]
[389528796,1759699838605,-621.97,0.00016438,2]
[389528797,1759699838614,-562.7,0.00016438,2]
[389528798,1759699838623,-500.0,0.00016438,2]
[389528799,1759699838632,-500.0,0.00016438,2]
[389528800,1759699838641,-500.0,0.00016438,2]
[389528801,1759699838650,-343.15911965,0.00016438,2]
[389528802,1759699838659,-648.62,0.00016438,2]
[389528803,1759699838669,-500.0,0.00016438,2]
[389528804,1759699838679,-500.0,0.00016438,2]
[389528805,1759699838689,-500.0,0.00016438,2]
[389528806,1759699838699,-500.0,0.00016438,2]
[389528807,1759699838709,-500.0,0.00016438,2]
[389528808,1759699838718,-500.0,0.00016438,2]
[389528809,1759699838728,-500.0,0.00016438,2]
[389528810,1759699838737,-500.0,0.00016438,2]
[389528811,1759699838747,-500.0,0.00016438,2]
[389528812,1759699838757,-1039.1,0.00016438,2]
[389528813,1759699838766,-955.84,0.00016438,2]
[389528814,1759699838777,-500.0,0.00016438,2]
[389528815,1759699838788,-500.0,0.00016438,2]
[389528816,1759699838797,-500.0,0.00016438,2]
[389528817,1759699838807,-500.0,0.00016438,2]
[389528818,1759699838817,-500.0,0.00016438,2]
[389528819,1759699838829,-500.0,0.00016438,2]
[389528820,1759699838839,-500.0,0.00016438,2]
[389528821,1759699838848,-526.44,0.00016438,2]
[389528822,1759699838858,-521.36,0.00016438,2]
[389528823,1759699838868,-500.0,0.00016438,2]
[389528824,1759699838878,-500.0,0.00016438,2]
[389528825,1759699838887,-500.0,0.00016438,2]
[389528826,1759699838897,-178.9208305,0.00016438,2]
[389528827,1759699838907,-500.0,0.00016438,2]
[389528828,1759699838916,-225.84224848,0.00016438,2]
[389528829,1759699838925,-500.0,0.00016438,2]
[389528830,1759699838935,-500.0,0.00016438,2]
[389528831,1759699838944,-584.37233216,0.00016438,2]
[389528832,1759699838953,-500.0,0.00016438,2]
[389528833,1759699838963,-500.0,0.00016438,2]
[389528834,1759699838972,-500.0,0.00016438,2]
[389528835,1759699838982,-500.0,0.00016438,2]
[389528836,1759699838991,-500.0,0.00016438,2]
[389528837,1759699839000,-500.0,0.00016438,2]
[389528838,1759699839010,-500.0,0.00016438,2]
[389528839,1759699839019,-500.0,0.00016438,2]
[389528840,1759699839029,-500.0,0.00016438,2]
[389528841,1759699839038,-500.0,0.00016438,2]
[389528842,1759699839047,-500.0,0.00016438,2]
[389528843,1759699839056,-500.0,0.00016438,2]
[389528844,1759699839065,-500.0,0.00016438,2]
[389528845,1759699839074,-500.0,0.00016438,2]
[389528846,1759699839084,-1243.9,0.00016438,2]
[389528847,1759699839093,-500.0,0.00016438,2]
[389528848,1759699839102,-500.0,0.00016438,2]
[389528849,1759699839111,-271.36777272,0.00016438,2]
[389528850,1759699839121,-172.74701761,0.00016438,2]
[389528851,1759699839130,-500.0,0.00016438,2]
[389528852,1759699839139,-500.0,0.00016438,2]
[389528853,1759699839149,-500.0,0.00016438,2]
[389528854,1759699839159,-500.0,0.00016438,2]
[389528855,1759699839168,-500.0,0.00016438,2]
[389528856,1759699839177,-2272.19,0.00016438,2]
[389528857,1759699839186,-500.0,0.00016438,2]
[389528858,1759699839196,-500.0,0.00016438,2]
[389528859,1759699839206,-500.0,0.00016438,2]
[389528860,1759699839215,-500.0,0.00016438,2]
[389528861,1759699839225,-500.0,0.00016438,2]
[389528862,1759699839233,-826.91,0.00016438,2]
[389528863,1759699839243,-500.0,0.00016438,2]
[389528864,1759699839252,-1052.5,0.00016438,2]
[389528865,1759699839261,-500.0,0.00016438,2]
[389528866,1759699839270,-500.0,0.00016438,2]
[389528867,1759699839279,-500.0,0.00016438,2]
[389528868,1759699839288,-500.0,0.00016438,2]
[389528869,1759699839297,-1122.09,0.00016438,2]
[389528870,1759699839306,-500.0,0.00016438,2]
[389528871,1759699839315,-1443.56,0.00016438,2]
[389528872,1759699839324,-2707.89,0.00016438,2]
[389528873,1759699839335,-500.0,0.00016438,2]
[389528874,1759699839345,-831.54,0.00016438,2]
[389528875,1759699839354,-500.0,0.00016438,2]
[389528876,1759699839363,-535.68,0.00016438,2]
[389528877,1759699839372,-500.0,0.00016438,2]
[389528878,1759699839381,-500.0,0.00016438,2]
[389528879,1759699839391,-500.0,0.00016438,2]
[389528880,1759699839400,-500.0,0.00016438,2]
[389528881,1759699839410,-500.0,0.00016438,2]
[389528882,1759699839419,-805.69,0.00016438,2]
[389528883,1759699839429,-500.0,0.00016438,2]
[389528884,1759699839438,-500.0,0.00016438,2]
[389528888,1759699839627,-500.0,0.00016438,2]
[389528889,1759699839638,-260.67477257,0.00016438,2]
[389528890,1759699839648,-3973.99,0.00016438,2]
[389528891,1759699839658,-877.38,0.00016438,2]
[389528892,1759699839668,-500.0,0.00016438,2]
[389528893,1759699839678,-500.0,0.00016438,2]
[389528894,1759699839687,-500.0,0.00016438,2]
[389528895,1759699839696,-500.0,0.00016438,2]
[389528896,1759699839706,-500.0,0.00016438,2]
[389528897,1759699839715,-500.0,0.00016438,2]
[389528898,1759699839725,-1403.53,0.00016438,2]
[389528899,1759699839735,-500.0,0.00016438,2]
[389528900,1759699839744,-500.0,0.00016438,2]
[389528901,1759699839754,-621.72,0.00016438,2]
[389528902,1759699839764,-500.0,0.00016438,2]
[389528903,1759699839773,-2334.53,0.00016438,2]
[389528904,1759699839783,-500.0,0.00016438,2]
[389528905,1759699839792,-2873.23,0.00016438,2]
[389528906,1759699839803,-1087.4,0.00016438,2]
[389528907,1759699839812,-500.0,0.00016438,2]
[389528908,1759699839822,-500.0,0.00016438,2]
[389528909,1759699839832,-500.0,0.00016438,2]
[389528910,1759699839841,-816.15,0.00016438,2]
[389528911,1759699839850,-2446.19,0.00016438,2]
[389528912,1759699839859,-615.44,0.00016438,2]
[389528913,1759699839869,-612.58,0.00016438,2]
[389528914,1759699839878,-500.0,0.00016438,2]
[389528915,1759699839887,-500.0,0.00016438,2]
[389528916,1759699839898,-500.0,0.00016438,2]
[389528917,1759699839907,-500.0,0.00016438,2]
[389528918,1759699839916,-500.0,0.00016438,2]
[389528920,1759699839925,-500.0,0.00016438,2]
[389528922,1759699839935,-679.39,0.00016438,2]
[389528924,1759699839944,-500.0,0.00016438,2]
[389528926,1759699839953,-4846.57,0.00016438,2]
[389528928,1759699839963,-542.51,0.00016438,2]
[389528931,1759699839972,-659.83,0.00016438,2]
[389528933,1759699839981,-500.0,0.00016438,2]
[389528935,1759699839991,-500.0,0.00016438,2]
[389528936,1759699840000,-1123.03,0.00016438,2]
[389528938,1759699840010,-500.0,0.00016438,2]
[389528940,1759699840020,-968.09,0.00016438,2]
[389528943,1759699840029,-1937.48,0.00016438,2]
[389528944,1759699840039,-500.0,0.00016438,2]
[389528946,1759699840048,-500.0,0.00016438,2]
[389528948,1759699840057,-576.59,0.00016438,2]
[389528950,1759699840067,-500.0,0.00016438,2]
[389528953,1759699840077,-1032.39,0.00016438,2]
[389528954,1759699840087,-500.0,0.00016438,2]
[389528957,1759699840096,-500.0,0.00016438,2]
[389528958,1759699840106,-500.0,0.00016438,2]
[389528960,1759699840115,-500.0,0.00016438,2]
[389528961,1759699840124,-500.0,0.00016438,2]
[389528962,1759699840133,-500.0,0.00016438,2]
[389528963,1759699840143,-1738.6,0.00016438,2]
[389528964,1759699840152,-865.85,0.00016438,2]
[389528965,1759699840162,-620.87,0.00016438,2]
[389528966,1759699840171,-500.0,0.00016438,2]
[389528967,1759699840180,-500.0,0.00016438,2]
[389528968,1759699840190,-500.0,0.00016438,2]
[389528969,1759699840199,-757.2,0.00016438,2]
[389528970,1759699840208,-500.0,0.00016438,2]
[389528971,1759699840217,-500.0,0.00016438,2]
[389528972,1759699840227,-500.0,0.00016438,2]
[389528973,1759699840236,-500.0,0.00016438,2]
[389528974,1759699840245,-500.0,0.00016438,2]
[389528976,1759699840254,-529.04,0.00016438,2]
[389528978,1759699840263,-500.0,0.00016438,2]
[389528980,1759699840272,-500.0,0.00016438,2]
[389528982,1759699840281,-3667.07,0.00016438,2]
[389528984,1759699840291,-500.0,0.00016438,2]
[389528985,1759699840300,-500.0,0.00016438,2]
[389528986,1759699840309,-500.0,0.00016438,2]
[389528987,1759699840318,-500.0,0.00016438,2]
[389528988,1759699840328,-308.26584894,0.00016438,2]
[389528989,1759699840344,-501.10493374,0.00016438,2]
[389528990,1759699840353,-500.0,0.00016438,2]
[389528991,1759699840363,-500.0,0.00016438,2]
[389528992,1759699840372,-500.0,0.00016438,2]
[389528993,1759699840383,-10832.47,0.00016438,2]
[389528994,1759699840392,-578.82,0.00016438,2]
[389528996,1759699840401,-500.0,0.00016438,2]
[389528998,1759699840411,-500.0,0.00016438,2]
[389529000,1759699840421,-500.0,0.00016438,2]
[389529002,1759699840430,-500.0,0.00016438,2]
[389529004,1759699840439,-500.0,0.00016438,2]
[389529006,1759699840448,-500.0,0.00016438,2]
[389529008,1759699840457,-500.0,0.00016438,2]
[389529010,1759699840466,-1061.87,0.00016438,2]
[389529012,1759699840476,-500.0,0.00016438,2]
[389529014,1759699840485,-2723.59,0.00016438,2]
[389529016,1759699840494,-1421.17,0.00016438,2]
[389529018,1759699840503,-6185.69,0.00016438,2]
[389529020,1759699840512,-500.0,0.00016438,2]
[389529022,1759699840520,-500.0,0.00016438,2]
[389529024,1759699840529,-900.23,0.00016438,2]
[389529026,1759699840538,-500.0,0.00016438,2]
[389529028,1759699840547,-500.0,0.00016438,2]
[389529030,1759699840556,-6340.07,0.00016438,2]
[389529032,1759699840564,-500.0,0.00016438,2]
[389529034,1759699840574,-500.0,0.00016438,2]
[389529036,1759699840583,-3224.65,0.00016438,2]
[389529038,1759699840592,-500.0,0.00016438,2]
[389529040,1759699840602,-557.63,0.00016438,2]
[389529042,1759699840611,-500.0,0.00016438,2]
[389529044,1759699840619,-500.0,0.00016438,2]
[389529046,1759699840628,-500.0,0.00016438,2]
[389529048,1759699840637,-625.46,0.00016438,2]
[389529050,1759699840647,-1034.87,0.00016438,2]
[389529052,1759699840656,-657.66,0.00016438,2]
[389529054,1759699840665,-500.0,0.00016438,2]
[389529056,1759699840675,-709.67,0.00016438,2]
[389529058,1759699840685,-500.0,0.00016438,2]
[389529060,1759699840694,-1433.0,0.00016438,2]
[389529062,1759699840703,-500.0,0.00016438,2]
[389529064,1759699840712,-500.0,0.00016438,2]
[389529066,1759699840722,-2989.31,0.00016438,2]
[389529068,1759699840730,-500.0,0.00016438,2]
[389529069,1759699840739,-500.0,0.00016438,2]
[389529071,1759699840748,-500.0,0.00016438,2]
[389529073,1759699840757,-500.0,0.00016438,2]
[389529075,1759699840766,-300.0,0.00016699,2]
[389529077,1759699840776,-300.0,0.00016699,2]
[389529079,1759699840786,-300.0,0.00016699,2]
[389529081,1759699840795,-300.0,0.00016699,2]
[389529082,1759699840804,-300.0,0.00016699,2]
[389529083,1759699840813,-300.0,0.00016699,2]
[389529085,1759699840823,-300.0,0.00016699,2]
[389529087,1759699840832,-300.0,0.00016699,2]
[389529089,1759699840842,-300.0,0.00016699,2]
[389529090,1759699840851,-300.0,0.00016699,2]
[389529091,1759699840860,-300.0,0.00016699,2]
[389529092,1759699840870,-300.0,0.00016699,2]
[389529093,1759699840879,-300.0,0.00016699,2]
[389529094,1759699840889,-300.0,0.00016699,2]
[389529095,1759699840898,-300.0,0.00016699,2]
[389529096,1759699840907,-600.0,0.00016699,2]
[389529097,1759699840917,-500.0,0.00016712,2]
[389529098,1759699840925,-500.0,0.00016712,2]
[389529099,1759699840935,-500.0,0.00016712,2]
[389529100,1759699840944,-500.0,0.00016712,2]
[389529101,1759699840954,-528.60478509,0.00016712,2]
[389529102,1759699840963,-500.0,0.00016712,2]
[389529103,1759699840972,-500.0,0.00016712,2]
[389529104,1759699840981,-500.0,0.00016712,2]
[389529105,1759699840990,-1197.55,0.00016712,2]
[389529106,1759699841000,-505.23,0.00016712,2]
[389529107,1759699841008,-500.0,0.00016712,2]
[389529108,1759699841019,-500.0,0.00016712,2]
[389529109,1759699841029,-500.0,0.00016712,2]
[389529110,1759699841038,-500.0,0.00016712,2]
[389529111,1759699841047,-500.0,0.00016712,2]
[389529112,1759699841056,-500.0,0.00016712,2]
[389529113,1759699841065,-500.0,0.00016712,2]
[389529114,1759699841074,-193.54318782,0.00016712,2]
[389529115,1759699841084,-500.0,0.00016712,2]
[389529116,1759699841093,-1143.81,0.00016712,2]
[389529117,1759699841102,-709.87,0.00016712,2]
[389529118,1759699841111,-500.0,0.00016712,2]
[389529119,1759699841120,-500.0,0.00016712,2]
[389529120,1759699841129,-500.0,0.00016712,2]
[389529121,1759699841139,-500.0,0.00016712,2]
[389529122,1759699841148,-500.0,0.00016712,2]
[389529123,1759699841157,-500.0,0.00016712,2]
[389529124,1759699841165,-500.0,0.00016712,2]
[389529125,1759699841175,-500.0,0.00016712,2]
[389529126,1759699841184,-500.0,0.00016712,2]
[389529127,1759699841193,-407.04511208,0.00016712,2]
[389529128,1759699841203,-500.0,0.00016712,2]
[389529129,1759699841212,-805.2,0.00016712,2]
[389529130,1759699841221,-500.0,0.00016712,2]
[389529131,1759699841231,-500.0,0.00016712,2]
[389529132,1759699841241,-500.0,0.00016712,2]
[389529133,1759699841251,-500.0,0.00016712,2]
[389529134,1759699841260,-500.0,0.00016712,2]
[389529135,1759699841269,-513.21,0.00016712,2]
[389529136,1759699841279,-500.0,0.00016712,2]
[389529137,1759699841288,-500.0,0.00016712,2]
[389529138,1759699841297,-601.33,0.00016712,2]
[389529139,1759699841308,-621.97,0.00016712,2]
[389529140,1759699841318,-562.7,0.00016712,2]
[389529141,1759699841328,-500.0,0.00016712,2]
[389529142,1759699841342,-500.0,0.00016712,2]
[389529143,1759699841351,-648.62,0.00016712,2]
[389529144,1759699841359,-500.0,0.00016712,2]
[389529145,1759699841368,-500.0,0.00016712,2]
[389529146,1759699841377,-500.0,0.00016712,2]
[389529147,1759699841387,-500.0,0.00016712,2]
[389529148,1759699841396,-500.0,0.00016712,2]
[389529149,1759699841405,-284.97416766,0.00016712,2]
[389529150,1759699841414,-500.0,0.00016712,2]
[389529151,1759699841423,-500.0,0.00016712,2]
[389529152,1759699841432,-1039.1,0.00016712,2]
[389529153,1759699841441,-955.84,0.00016712,2]
[389529154,1759699841450,-500.0,0.00016712,2]
[389529155,1759699841459,-500.0,0.00016712,2]
[389529156,1759699841469,-500.0,0.00016712,2]
[389529157,1759699841478,-500.0,0.00016712,2]